bitfinex-derivatives/quotes_ETHF0:USTF0_20251210
["timestamp","ask_amount","ask_price","bid_price","bid_amount"]
[1765360249780,2.32478088,3335.3,3335.2,0.00684974]
[1765360250180,1.6597,3335.3,3335.2,0.00684974]
[1765360250578,1.6597,3335.3,3335.2,1.67914974]
[1765360250883,1.6597,3335.3,3335.2,0.80274974]
[1765360251080,1.6597,3335.3,3335.2,0.00684974]
[1765360251481,2.32046504,3335.3,3335.2,0.00684974]
[1765360252381,1.6597,3335.3,3335.2,0.00684974]
[1765360252883,2.32036055,3335.3,3335.2,0.00684974]
[1765360259383,2.47027055,3335.3,3335.2,0.00684974]
[1765360259687,1.5736,3334.6,3334.5,3.2078]
[1765360260082,1.5736,3334.6,3334.5,4.013]
[1765360260386,1.5736,3334.6,3334.5,4.8455]
[1765360260784,1.57648031,3334.6,3334.5,4.84939253]
[1765360260974,1.57648031,3334.6,3334.5,4.01689253]
[1765360261381,1.57648031,3334.6,3334.5,3.21169253]
[1765360262783,1.57648031,3334.6,3334.5,4.01689253]
[1765360263583,1.57648031,3334.6,3334.5,3.21169253]
[1765360263793,1.57648031,3334.6,3334.5,0.00389253]
[1765360264681,0.00288031,3334.6,3334.5,1.64159253]
[1765360264881,0.77598031,3334.6,3334.5,1.64159253]
[1765360265590,0.00288031,3334.6,3334.5,1.90759253]
[1765360265886,0.00288031,3334.6,3334.5,5.11539253]
[1765360267083,0.7731,3335.3,3335.2,1.6377]
[1765360267984,0.7764995,3335.3,3335.2,1.6377]
[1765360268280,1.5769995,3335.3,3335.2,1.6377]
[1765360272284,1.5769995,3335.3,3335.2,0.8052]
[1765360272484,1.5769995,3335.3,3335.2,1.6377]
[1765360272892,0.7764995,3335.3,3335.2,1.6377]
[1765360273088,0.0033995,3335.3,3335.2,1.6377]
[1765360273590,3.9006,3336.2,3336.1,1.4344]
[1765360273792,1.9962,3336.5,3336.4,0.6951]
[1765360274094,2.65506873,3336.5,3336.0,3.2078]
[1765360274288,1.9962,3336.5,3336.4,1.4344]
[1765360274489,2.6581697,3336.5,3336.4,1.4344]
[1765360274893,1.29304682,3336.5,3336.4,1.4344]
[1765360275398,0.00344682,3336.5,3336.4,1.4344]
[1765360275788,0.69624682,3336.5,3336.4,1.4344]
[1765360277487,0.00344682,3336.5,3336.4,1.4344]
[1765360278695,0.00344682,3336.5,3336.4,4.6422]
[1765360278896,1.3871,3337.4,3337.3,0.6714]
[1765360279192,1.3871,3337.4,3337.3,1.3525]
[1765360279900,1.39038472,3337.4,3337.3,1.35500427]
[1765360280290,0.71278472,3337.4,3337.3,1.35500427]
[1765360281692,1.39038472,3337.4,3337.3,1.35500427]
[1765360282687,1.39038472,3337.4,3337.3,0.67390427]
[1765360282890,1.39038472,3337.4,3337.0,0.00449667]
[1765360283187,1.7939,3336.5,3336.4,4.5603]
[1765360283396,1.1163,3336.5,3336.4,4.5603]
[1765360283588,0.4068,3337.0,3336.4,4.5603]
[1765360283983,1.7939,3337.0,3336.9,1.3525]
[1765360284188,0.00328472,3337.4,3337.3,1.3525]
[1765360284589,0.00328472,3337.4,3337.3,4.5603]
[1765360286793,1.39038472,3337.4,3337.3,3.2078]
[1765360287108,0.00328472,3337.4,3337.3,4.5603]
[1765360287597,0.71278472,3337.4,3337.3,4.5603]
[1765360287800,1.39038472,3337.4,3337.3,0.6714]
[1765360288193,1.39038472,3337.4,3336.9,3.2078]
[1765360289705,0.00328472,3337.4,3337.3,1.3525]
[1765360291295,0.00449667,3337.7,3337.3,4.5603]
[1765360291499,3.9173,3338.5,3338.4,1.3525]
[1765360291699,5.0017,3338.5,3338.4,1.3525]
[1765360292202,5.0017,3338.5,3338.4,0.6714]
[1765360292407,5.00395909,3338.5,3338.4,0.6714]
[1765360293300,3.21005909,3338.5,3338.4,1.3525]
[1765360293609,0.00225909,3338.5,3338.4,1.3525]
[1765360296702,0.00449667,3338.8,3338.7,1.3525]
[1765360296908,0.00449667,3338.8,3338.7,4.5603]
[1765360297798,0.00831671,3338.8,3338.7,4.5603]
[1765360299513,1.1163,3340.0,3339.9,1.3525]
[1765360299706,3.2078,3340.4,3339.9,1.3525]
[1765360299906,4.5949,3340.4,3340.3,1.3525]
[1765360300106,3.9173,3340.4,3340.3,1.3525]
[1765360300412,0.71270307,3340.4,3340.3,1.35478391]
[1765360300710,0.00320307,3340.4,3340.3,1.35478391]
[1765360304903,0.71270307,3340.4,3340.3,1.35478391]
[1765360305614,0.00320307,3340.4,3340.3,1.35478391]
[1765360305816,1.39030307,3340.4,3340.3,0.67368391]
[1765360306415,0.00320307,3340.4,3340.3,1.35478391]
[1765360306814,0.71270307,3340.4,3340.3,1.35478391]
[1765360307713,1.39030307,3340.4,3340.3,1.35478391]
[1765360308314,0.71270307,3340.4,3340.3,1.35478391]
[1765360309010,0.00320307,3340.4,3340.3,1.35478391]
[1765360310015,0.69100307,3340.4,3340.3,1.35478391]
[1765360310212,1.39080307,3340.4,3340.3,0.67368391]
[1765360310616,1.39080307,3340.4,3340.3,1.40368391]
[1765360311306,0.69100307,3340.4,3340.3,1.40368391]
[1765360313119,1.39080307,3340.4,3340.3,0.67368391]
[1765360313313,1.39080307,3340.4,3340.3,0.00228391]
[1765360314019,1.39080307,3340.4,3340.3,0.67098391]
[1765360314920,1.39080307,3340.4,3340.3,0.00228391]
[1765360315421,1.39080307,3340.4,3340.3,0.67098391]
[1765360315714,4.59860307,3340.4,3340.3,0.00228391]
[1765360315920,1.3876,3340.1,3340.0,0.00449667]
[1765360316513,0.00320307,3340.4,3340.3,1.3987]
[1765360316916,1.39080307,3340.4,3340.3,0.00245768]
[1765360320017,2.04147338,3340.4,3340.3,0.00245768]
[1765360320919,2.04203673,3340.4,3340.3,0.00245768]
[1765360321114,2.04203673,3340.4,3340.0,0.00449667]
[1765360321314,1.3876,3339.7,3339.6,3.8765]
[1765360322419,1.3876,3339.7,3339.6,3.87952975]
[1765360322620,1.3876,3339.7,3339.6,4.60952975]
[1765360323320,0.00320307,3340.4,3340.3,1.3987]
[1765360324223,0.69100307,3340.4,3340.3,1.3987]
[1765360325317,1.34193898,3340.4,3340.3,1.3987]
[1765360326224,1.34232762,3340.4,3340.3,1.3987]
[1765360326621,0.65452762,3340.4,3340.3,1.3987]
[1765360326820,0.00320307,3340.4,3340.3,1.3987]
[1765360327826,0.67390307,3340.4,3340.3,1.3987]
[1765360328423,1.37280307,3340.4,3340.3,1.3987]
[1765360328632,2.02412762,3340.4,3340.3,0.6687]
[1765360329629,1.4253,3340.2,3339.6,0.00302975]
[1765360329827,1.8411,3340.0,3339.9,0.6754]
[1765360330021,1.4253,3339.7,3339.6,1.37872975]
[1765360330921,2.07777111,3339.7,3339.6,0.00302975]
[1765360331521,5.28557111,3339.7,3339.6,0.00302975]
[1765360331922,5.53520231,3339.7,3339.6,0.00302975]
[1765360332129,1.4253,3339.4,3339.3,0.00449667]
[1765360332329,2.07777111,3339.4,3339.3,0.00449667]
[1765360333026,2.07777111,3339.4,3339.3,0.00725313]
[1765360333228,0.65247111,3339.4,3339.3,1.38295313]
[1765360333425,1.8411,3339.5,3339.4,1.3757]
[1765360333629,1.8411,3339.5,3339.3,0.00725313]
[1765360333630,3.2078,3339.7,3339.6,1.3757]
[1765360333827,4.58586811,3339.7,3339.6,1.3757]
[1765360334030,1.4253,3339.4,3339.3,0.68265313]
[1765360334223,1.4253,3339.4,3339.3,1.38295313]
[1765360334723,2.07681814,3339.4,3339.3,0.00725313]
[1765360334924,2.07681814,3339.4,3339.3,0.68265313]
[1765360335123,1.4253,3339.4,3339.3,0.68265313]
[1765360335824,1.4253,3339.4,3339.3,0.00725313]
[1765360336026,2.07665935,3339.4,3339.3,0.68265313]
[1765360336729,2.07665935,3339.4,3339.3,0.00725313]
[1765360338430,0.7196,3338.4,3338.3,4.6178]
[1765360339027,1.4445,3338.4,3338.3,4.6178]
[1765360339230,1.4445,3338.4,3338.3,4.62047156]
[1765360339826,1.4445,3338.4,3338.3,0.00267156]
[1765360340231,1.4445,3338.4,3338.3,0.69337156]
[1765360340430,1.4445,3338.4,3338.3,0.00267156]
[1765360342825,1.4445,3338.1,3338.0,0.00449667]
[1765360343832,1.4445,3338.1,3338.0,0.0070611]
[1765360345230,0.4155,3338.0,3337.1,3.2078]
[1765360345435,3.2078,3337.8,3337.1,3.2078]
[1765360346135,3.21091444,3337.8,3337.1,3.21562808]
[1765360346934,1.1351,3337.5,3337.4,0.6907]
[1765360347133,0.7196,3337.2,3337.1,0.69852808]
[1765360347338,0.7196,3337.2,3337.1,1.41782808]
[1765360347542,1.4445,3337.2,3337.1,1.41782808]
[1765360348234,0.7196,3337.2,3337.1,1.41782808]
[1765360348436,3.21091444,3337.8,3337.7,1.41]
[1765360348733,3.93051444,3337.8,3337.7,1.41]
[1765360348938,4.65541444,3337.8,3337.3,0.14982]
[1765360349139,4.65541444,3337.8,3337.1,3.21562808]
[1765360349140,4.65541444,3337.8,3337.7,1.41]
[1765360349338,3.93051444,3337.8,3337.7,1.41]
[1765360349540,3.21091444,3337.8,3337.7,1.41]
[1765360349934,4.65541444,3337.8,3337.7,1.41]
[1765360350735,4.65541444,3337.8,3337.7,0.6907]
[1765360351739,4.65541444,3337.8,3337.1,3.21562808]
[1765360352240,1.4445,3337.2,3337.1,4.62562808]
[1765360352435,1.1351,3337.5,3337.4,0.6907]
[1765360352642,1.86,3337.5,3337.4,0.6907]
[1765360353142,3.93051444,3337.8,3337.7,1.41]
[1765360353339,0.00311444,3337.8,3337.7,1.41]
[1765360354232,0.00311444,3337.8,3337.7,7.41]
[1765360358140,0.72271444,3337.8,3337.7,1.41]
[1765360358940,0.00311444,3337.8,3337.7,1.41]
[1765360359740,0.72271444,3337.8,3337.7,1.41]
[1765360360046,0.00311444,3337.8,3337.7,1.41]
[1765360360744,0.72271444,3337.8,3337.7,1.41]
[1765360363751,0.00311444,3337.8,3337.7,1.41]
[1765360363951,0.72271444,3337.8,3337.7,1.41]
[1765360364748,1.44761444,3337.8,3337.7,1.41]
[1765360364944,1.44761444,3337.8,3337.7,0.6907]
[1765360365846,0.7196,3337.3,3337.2,1.41]
[1765360366246,1.86,3337.5,3337.4,1.41]
[1765360368054,1.3856,3337.2,3337.1,4.64982808]
[1765360368258,1.8011,3337.5,3337.4,1.4342]
[1765360368957,1.8011,3337.5,3337.4,0.7106]
[1765360369457,1.8011,3337.5,3337.4,1.4342]
[1765360370452,0.00311444,3337.8,3337.7,1.4342]
[1765360370659,0.00311444,3337.8,3337.7,1.584]
[1765360371757,0.00311444,3337.8,3337.7,1.4342]
[1765360372258,0.70001444,3337.8,3337.7,1.4342]
[1765360372458,0.00311444,3337.8,3337.7,1.4342]
[1765360372953,0.70001444,3337.8,3337.7,1.4342]
[1765360373157,1.38871444,3337.8,3337.7,1.4342]
[1765360373560,1.38871444,3337.8,3337.7,0.7106]
[1765360374161,1.38871444,3337.8,3337.7,1.4342]
[1765360374460,1.38871444,3337.8,3337.7,0.7106]
[1765360375063,1.3856,3337.7,3337.6,3.9184]
[1765360375561,1.7966,3337.5,3337.4,0.7106]
[1765360375861,1.7966,3337.5,3337.4,1.4342]
[1765360376359,1.1079,3337.5,3337.4,1.4342]
[1765360376555,0.00311444,3337.8,3337.7,1.4342]
[1765360376760,0.70001444,3337.8,3337.7,1.4342]
[1765360376961,0.00311444,3337.8,3337.7,1.4342]
[1765360378365,0.70001444,3337.8,3337.7,1.4342]
[1765360378662,1.7966,3337.5,3337.4,1.4342]
[1765360379463,1.1079,3337.5,3337.4,1.4342]
[1765360380568,1.7966,3337.5,3337.4,1.4342]
[1765360381272,1.1079,3337.5,3337.4,1.4342]
[1765360381475,0.70001444,3337.8,3337.7,1.4342]
[1765360381762,1.38871444,3337.8,3337.7,1.4342]
[1765360383170,1.38871444,3337.8,3337.7,0.7106]
[1765360383366,1.38871444,3337.8,3337.7,1.4342]
[1765360383870,0.70001444,3337.8,3337.7,1.4342]
[1765360384070,1.38871444,3337.8,3337.7,1.4342]
[1765360386373,1.38871444,3337.8,3337.7,0.7106]
[1765360386568,1.38871444,3337.8,3337.7,1.4342]
[1765360389574,0.00311444,3337.8,3337.7,1.4342]
[1765360392470,0.64751912,3338.2,3338.1,1.4342]
[1765360392667,4.59789667,3338.7,3338.1,4.80706352]
[1765360392862,1.7966,3338.0,3337.9,1.59926352]
[1765360393067,1.3781,3337.9,3337.8,1.3811]
[1765360393273,0.6782,3337.9,3337.8,1.3811]
[1765360393574,0.0035075,3337.9,3337.8,1.3811]
[1765360393769,0.0035075,3337.9,3337.8,2.98036352]
[1765360395175,0.0035075,3337.9,3337.8,1.3811]
[1765360396773,1.3816075,3337.9,3337.8,0.6698]
[1765360397369,1.3816075,3337.9,3337.8,1.3811]
[1765360397676,0.0035075,3337.9,3337.8,1.3811]
[1765360400475,2.0198399,3339.0,3337.8,1.3811]
[1765360400476,4.65289667,3338.7,3338.6,1.3733]
[1765360400677,5.2936141,3338.7,3338.6,1.3733]
[1765360400878,5.2936141,3338.7,3338.6,0.6749]
[1765360401480,5.29628717,3338.7,3338.6,0.6749]
[1765360401677,1.4406,3338.2,3338.1,1.59937656]
[1765360401882,1.4406,3337.8,3337.7,5.48207656]
[1765360402083,1.4406,3337.8,3337.7,3.8827]
[1765360402580,1.4406,3337.8,3337.7,4.5811]
[1765360404885,1.4406,3337.8,3337.7,3.2078]
[1765360405382,1.4406,3337.8,3337.7,3.8827]
[1765360405883,1.4406,3337.8,3337.7,4.5811]
[1765360407885,0.7309,3337.6,3337.5,0.6749]
[1765360408091,1.4406,3337.4,3337.3,0.6749]
[1765360408986,1.4406,3337.2,3337.1,0.68272808]
[1765360410287,1.4406,3337.2,3337.1,1.38112808]
[1765360410692,2.36282554,3337.2,3337.1,1.38112808]
[1765360410993,1.4406,3337.2,3337.1,1.38112808]
[1765360412188,1.4406,3337.2,3337.1,0.68272808]
[1765360412487,1.4406,3337.2,3337.1,0.00782808]
[1765360414288,1.4406,3337.2,3337.1,1.38112808]
[1765360414486,2.36282554,3337.2,3337.1,0.68272808]
[1765360414689,2.36282554,3337.2,3337.1,0.00782808]
[1765360414988,2.36282554,3337.2,3337.1,0.68272808]
[1765360415992,2.36282554,3337.2,3337.1,0.00782808]
[1765360416383,2.36282554,3337.2,3337.1,0.68272808]
[1765360416586,3.2078,3337.5,3337.4,1.3733]
[1765360417181,5.0885,3338.0,3337.9,1.3733]
[1765360417391,5.72753295,3338.0,3337.9,1.3733]
[1765360417594,5.0885,3338.0,3337.9,1.3733]
[1765360418190,5.0885,3338.0,3337.9,0.6749]
[1765360419590,5.0885,3338.0,3337.9,1.3733]
[1765360419796,6.01072554,3338.0,3337.9,1.3733]
[1765360420195,6.01072554,3338.0,3337.9,0.6749]
[1765360420391,0.7309,3337.3,3337.2,2.27427656]
[1765360420692,1.4406,3337.3,3337.2,1.3733]
[1765360420993,1.8807,3337.5,3337.4,1.3733]
[1765360421993,1.8807,3337.5,3337.4,0.6749]
[1765360422194,1.8807,3337.5,3337.4,1.3733]
[1765360424497,4.3788,3338.0,3337.9,1.3733]
[1765360424698,5.0885,3338.0,3337.9,1.3733]
[1765360425092,5.0885,3338.0,3337.9,0.6749]
[1765360425397,0.7309,3337.6,3337.5,4.5811]
[1765360426592,1.4406,3337.6,3337.5,3.8827]
[1765360426792,1.4406,3337.6,3337.2,1.74680553]
[1765360426999,1.4406,3337.3,3337.2,1.52312]
[1765360427293,0.92222554,3337.4,3337.1,4.81261361]
[1765360427294,1.4406,3337.2,3337.1,3.89052808]
[1765360427492,1.4406,3337.2,3337.1,4.58892808]
[1765360427687,0.7309,3337.2,3337.1,4.58892808]
[1765360427895,1.8761,3337.5,3337.4,0.6749]
[1765360429601,5.95452554,3338.0,3337.9,1.3555]
[1765360429901,5.0323,3338.0,3337.9,0.6681]
[1765360430107,5.67034565,3338.0,3337.9,0.6681]
[1765360430303,0.6793,3337.6,3337.5,4.5633]
[1765360431200,1.8245,3338.0,3337.9,1.3555]
[1765360431401,2.30662554,3338.4,3337.6,0.92222554]
[1765360431606,2.01994829,3338.3,3338.2,0.6681]
[1765360431998,2.01994829,3338.3,3337.6,0.92222554]
[1765360432304,1.3844,3338.3,3337.6,0.92222554]
[1765360432696,1.3844,3338.3,3337.5,5.18279553]
[1765360433409,1.3844,3338.3,3338.2,0.6681]
[1765360433708,2.01994401,3338.3,3337.5,5.18279553]
[1765360433896,1.3844,3338.3,3338.2,0.6681]
[1765360434306,1.3844,3338.3,3337.5,5.18279553]
[1765360434502,1.3844,3338.3,3337.5,3.58581]
[1765360434698,1.3844,3337.6,3337.5,3.35761]
[1765360434906,1.3844,3337.6,3337.5,4.71311]
[1765360435105,0.6793,3337.6,3337.5,4.71311]
[1765360435804,1.3844,3337.6,3337.5,3.2078]
[1765360436011,1.3844,3337.3,3337.2,1.3555]
[1765360436705,1.3844,3337.2,3337.1,3.21562808]
[1765360436907,1.3844,3337.2,3337.1,0.00782808]
[1765360438813,2.02019212,3337.2,3337.1,0.00782808]
[1765360439106,1.3844,3336.4,3336.3,6.16028553]
[1765360439305,3.2078,3337.4,3336.9,1.3555]
[1765360439510,0.6793,3337.0,3336.9,1.3555]
[1765360440204,1.38889667,3337.3,3337.2,0.6681]
[1765360440400,1.38889667,3337.3,3337.2,1.3555]
[1765360440605,0.00449667,3337.3,3337.2,1.3555]
[1765360440809,4.5922,3338.2,3338.1,1.3555]
[1765360441008,4.5922,3338.2,3338.1,0.6681]
[1765360442402,0.6793,3337.9,3337.8,1.35999667]
[1765360442811,1.3844,3337.9,3337.8,1.35999667]
[1765360444317,0.6793,3337.9,3337.8,1.35999667]
[1765360444510,1.80099667,3338.5,3338.4,1.3555]
[1765360444711,1.73001349,3338.5,3338.4,1.3555]
[1765360444916,2.43511349,3338.5,3338.4,1.3555]
[1765360445218,0.00449667,3338.5,3338.4,1.3555]
[1765360449119,0.00267307,3338.7,3338.6,1.3381]
[1765360451422,1.3864,3338.6,3338.5,4.605]
[1765360452113,0.70417307,3338.7,3338.6,1.3972]
[1765360452313,0.00267307,3338.7,3338.6,1.3972]
[1765360453522,0.00267307,3338.7,3338.6,1.54696]
[1765360462129,0.00449667,3339.0,3338.9,1.52935]
[1765360462325,4.6619,3339.9,3339.8,0.6938]
[1765360462626,4.6619,3340.4,3340.3,1.3796]
[1765360463130,4.66402387,3340.4,3340.3,1.38203225]
[1765360463330,4.66402387,3340.4,3340.3,0.69623225]
[1765360465224,4.66402387,3340.4,3340.3,1.38203225]
[1765360465428,1.45622387,3340.4,3340.3,1.38203225]
[1765360466123,1.45622387,3340.4,3340.3,0.69623225]
[1765360466825,1.45622387,3340.4,3340.3,1.38203225]
[1765360467634,1.45622387,3340.4,3340.3,0.69623225]
[1765360468424,0.00212387,3340.4,3340.3,1.53172225]
[1765360469327,0.73512387,3340.4,3340.3,1.53172225]
[1765360469528,1.45622387,3340.4,3340.3,1.53172225]
[1765360469734,1.45622387,3340.4,3340.3,0.00243225]
[1765360469929,1.45622387,3340.4,3340.3,0.69623225]
[1765360470137,1.45622387,3340.4,3340.3,1.38203225]
[1765360470824,1.45622387,3340.4,3340.3,0.00243225]
[1765360472222,7.45622387,3340.4,3340.3,0.00243225]
[1765360472430,1.4541,3340.1,3340.0,0.00449667]
[1765360473532,1.4541,3340.1,3340.0,0.00756432]
[1765360475126,1.4541,3339.4,3339.3,3.9016]
[1765360475929,1.1351,3339.0,3338.9,4.5874]
[1765360476130,1.8681,3339.0,3338.9,4.59057559]
[1765360476429,1.147,3339.0,3338.9,4.59057559]
[1765360476928,0.414,3339.5,3338.9,4.74032559]
[1765360477230,1.8681,3339.5,3338.9,3.36072559]
[1765360477434,0.414,3339.5,3338.9,4.74032559]
[1765360477636,0.733,3339.0,3338.9,4.74032559]
[1765360478233,0.414,3339.5,3338.9,4.74032559]
[1765360478737,1.8681,3339.5,3338.9,3.36072559]
[1765360479033,3.6218,3340.0,3339.4,1.3796]
[1765360479236,1.8681,3339.5,3339.4,0.6938]
[1765360479440,1.8681,3339.5,3339.4,1.3796]
[1765360480838,1.4541,3339.4,3339.3,3.2078]
[1765360481033,1.4541,3339.1,3339.0,1.52934]
[1765360481237,3.6218,3340.0,3339.4,1.3796]
[1765360481540,5.0759,3340.0,3339.3,3.2078]
[1765360482942,1.8681,3340.0,3339.9,0.6938]
[1765360483141,0.414,3340.0,3339.9,1.3796]
[1765360483344,3.20992387,3340.4,3340.2,1.3796]
[1765360483345,1.4541,3340.3,3340.2,1.3796]
[1765360484141,0.733,3339.9,3339.8,1.52931]
[1765360484341,3.20992387,3340.4,3339.8,1.52931]
[1765360485448,4.66402387,3340.4,3340.3,0.6938]
[1765360485946,1.45622387,3340.4,3340.3,0.6938]
[1765360486146,1.45622387,3340.4,3340.3,1.3796]
[1765360486444,1.45622387,3340.4,3340.3,0.6938]
[1765360486748,1.45622387,3340.4,3340.3,1.3796]
[1765360487246,1.45622387,3340.4,3340.3,0.6938]
[1765360487446,1.4541,3340.2,3340.1,3.9016]
[1765360487746,1.4541,3340.2,3340.1,4.5874]
[1765360488446,1.4541,3340.2,3340.1,3.9016]
[1765360488642,1.4541,3340.2,3340.1,3.2078]
[1765360490644,1.4541,3340.2,3340.1,3.9439]
[1765360491037,1.4541,3340.2,3340.1,4.6384]
[1765360491239,1.4541,3340.2,3340.1,3.9439]
[1765360491440,1.4541,3340.2,3340.1,4.6384]
[1765360491637,0.733,3340.2,3340.1,4.6384]
[1765360492046,1.4438,3340.2,3340.1,4.6384]
[1765360492245,0.733,3340.2,3340.1,4.6384]
[1765360492648,1.4438,3340.2,3340.1,4.6384]
[1765360493042,0.733,3340.2,3340.1,4.6384]
[1765360493950,1.39692387,3340.4,3340.3,1.4306]
[1765360494244,0.00212387,3340.4,3340.3,1.4306]
[1765360495247,1.31522766,3341.3,3341.2,1.4306]
[1765360495443,0.684,3341.3,3341.2,1.4306]
[1765360496146,1.39776972,3341.3,3341.2,1.4306]
[1765360496642,0.68696972,3341.3,3341.2,1.4306]
[1765360497345,0.00296972,3341.3,3341.2,1.4306]
[1765360500953,0.68848933,3341.6,3341.5,1.4306]
[1765360501151,1.39928933,3341.6,3341.5,4.6384]
[1765360501348,0.00448933,3341.6,3341.5,4.6384]
[1765360501753,0.00448933,3341.6,3341.5,4.8681]
[1765360501953,0.00808848,3341.6,3341.5,4.87127926]
[1765360502355,0.00808848,3341.6,3341.5,4.64157926]
[1765360502855,1.40288848,3341.6,3341.5,0.00317926]
[1765360505856,1.834,3341.0,3340.9,0.00448933]
[1765360506160,1.834,3341.0,3340.9,1.43508933]
[1765360506560,1.834,3341.0,3340.9,0.74058933]
[1765360506858,1.834,3341.0,3340.9,0.74397277]
[1765360507247,1.834,3341.0,3340.9,0.00787277]
[1765360508352,1.834,3341.0,3340.9,1.47007277]
[1765360508560,1.834,3341.0,3340.9,0.74397277]
[1765360508960,1.834,3341.0,3340.9,1.47007277]
[1765360509153,1.834,3341.0,3340.9,0.00787277]
[1765360509762,1.834,3341.0,3340.9,0.70957277]
[1765360509964,0.4392,3341.5,3341.0,1.4278]
[1765360510257,1.422,3341.1,3341.0,1.4278]
[1765360510461,0.7273,3341.1,3341.0,1.4278]
[1765360511262,1.422,3341.1,3341.0,1.4278]
[1765360511463,1.8612,3341.5,3341.4,0.7017]
[1765360511962,1.858,3341.0,3340.9,1.43567277]
[1765360512155,1.1633,3341.0,3340.9,1.43567277]
[1765360512349,0.7273,3341.0,3340.9,1.43567277]
[1765360513162,0.4392,3341.5,3341.4,1.4278]
[1765360513163,1.8612,3341.5,3341.4,1.4278]
[1765360513764,1.8612,3341.5,3340.9,0.00787277]
[1765360513965,1.8612,3341.5,3340.9,0.70957277]
[1765360513966,1.858,3341.0,3340.9,0.70957277]
[1765360514166,1.858,3341.0,3340.9,1.43567277]
[1765360514359,1.1633,3341.0,3340.9,1.43567277]
[1765360514659,1.858,3341.0,3340.9,1.43567277]
[1765360517771,1.858,3341.0,3340.9,0.70957277]
[1765360517968,1.858,3341.0,3340.9,0.00787277]
[1765360520476,1.858,3341.0,3340.9,0.69197277]
[1765360521878,1.8084,3340.0,3339.9,1.5162]
[1765360522182,1.8084,3340.0,3339.9,0.8338]
[1765360522476,1.8084,3340.0,3339.9,1.5162]
[1765360522675,1.8084,3340.0,3339.9,1.51985476]
[1765360522878,1.8084,3340.0,3339.9,0.68775476]
[1765360524179,1.8084,3340.0,3339.9,0.00365476]
[1765360525268,0.702,3340.0,3339.9,1.37015476]
[1765360525469,1.8084,3340.5,3340.4,0.6841]
[1765360525984,4.5961,3340.9,3340.8,0.6841]
[1765360526276,4.5961,3341.3,3341.2,1.3665]
[1765360526670,1.3883,3341.3,3341.2,1.3665]
[1765360527980,1.3883,3341.3,3341.2,0.6841]
[1765360528277,0.702,3340.8,3340.7,4.5743]
[1765360528474,1.3883,3340.8,3340.7,4.5743]
[1765360528674,1.1221,3341.0,3340.9,1.3665]
[1765360528878,0.00808848,3341.6,3341.4,0.6841]
[1765360528879,1.8275,3341.5,3341.4,0.6841]
[1765360529371,1.8275,3341.5,3340.7,3.2078]
[1765360530081,1.8275,3341.5,3341.4,1.3665]
[1765360530282,0.00808848,3341.6,3341.5,1.3665]
[1765360531985,0.71008848,3341.6,3341.5,1.3665]
[1765360533082,0.00808848,3341.6,3341.5,4.96153]
[1765360537079,1.39638848,3341.6,3341.5,4.72393]
[1765360537280,0.00808848,3341.6,3341.5,4.96153]
[1765360538395,0.10179,3342.1,3342.0,1.7695]
[1765360538692,0.10179,3342.1,3342.0,5.12691]
[1765360539489,0.4201,3343.0,3342.9,1.3665]
[1765360539690,1.12550324,3343.0,3342.9,1.36899463]
[1765360540293,0.00340324,3343.0,3342.9,1.51856463]
[1765360540593,0.00340324,3343.0,3342.9,1.36899463]
[1765360540787,1.81180324,3343.0,3342.9,0.68659463]
[1765360541085,1.81180324,3343.0,3342.9,0.00249463]
[1765360542102,7.81180324,3343.0,3342.9,0.00249463]
[1765360542787,1.81180324,3343.0,3342.9,0.00249463]
[1765360543382,0.702,3341.9,3341.8,4.5743]
[1765360544394,0.702,3341.9,3341.8,4.57669447]
[1765360544792,1.3883,3341.9,3341.8,3.89429447]
[1765360545887,1.3883,3341.9,3341.8,3.21019447]
[1765360546092,1.3883,3341.9,3341.8,3.89429447]
[1765360546291,1.3883,3341.9,3341.8,4.57669447]
[1765360546893,1.3883,3341.9,3341.8,3.89429447]
[1765360547496,1.3883,3341.9,3341.8,0.00239447]
[1765360550395,0.7023,3341.1,3341.0,4.7031]
[1765360550596,1.4045,3341.1,3341.0,4.7031]
[1765360550894,0.4081,3341.5,3341.4,0.6761]
[1765360551201,0.7023,3341.1,3341.0,4.7031]
[1765360551500,1.4045,3341.1,3341.0,4.70684168]
[1765360551692,0.7023,3341.1,3341.0,4.70684168]
[1765360551888,1.40898933,3341.4,3341.3,1.3953]
[1765360552092,0.00448933,3341.4,3341.3,1.3953]
[1765360552694,0.70678933,3341.4,3341.3,1.3953]
[1765360553706,0.00448933,3341.4,3341.3,1.3953]
[1765360554389,0.70678933,3341.4,3341.3,1.3953]
[1765360555799,1.40898933,3341.4,3341.3,1.3953]
[1765360556104,1.4045,3341.1,3341.0,4.60684168]
[1765360556299,1.4045,3341.1,3341.0,3.88764168]
[1765360556495,1.4045,3341.1,3341.0,4.60684168]
[1765360556696,0.00448933,3341.4,3341.3,1.3953]
[1765360558705,1.40898933,3341.4,3341.3,1.3953]
[1765360558900,0.70678933,3341.4,3341.3,1.3953]
[1765360559402,0.00448933,3341.4,3341.3,1.3953]
[1765360559604,0.70678933,3341.4,3341.3,1.3953]
[1765360559803,0.7023,3341.1,3341.0,4.60684168]
[1765360560003,1.4045,3341.1,3341.0,4.60684168]
[1765360560205,1.4045,3341.1,3341.0,3.88764168]
[1765360560698,1.4045,3341.1,3341.0,3.21154168]
[1765360560900,1.4045,3341.1,3341.0,1.39904168]
[1765360561302,1.4045,3341.1,3341.0,0.67984168]
[1765360563398,0.00448933,3341.4,3341.0,1.39904168]
[1765360563604,1.40898933,3341.4,3341.3,0.6761]
[1765360563808,1.4045,3341.1,3341.0,1.39904168]
[1765360564713,1.4045,3341.1,3341.0,0.67984168]
[1765360565011,1.4045,3341.1,3341.0,0.00374168]
[1765360565607,1.4045,3341.1,3341.0,0.67984168]
[1765360565908,1.4045,3341.1,3341.0,1.39904168]
[1765360566909,1.4045,3341.1,3341.0,0.67984168]
[1765360567414,1.4045,3341.1,3341.0,1.39904168]
[1765360567616,0.00448933,3341.4,3341.3,1.3697]
[1765360568311,3.2078,3342.4,3341.9,1.3697]
[1765360568513,4.6176,3342.4,3342.3,0.6961]